[Event "FIDE Grand Swiss 2023"]
[Site "Villa Marina, Douglas, Isle of Man"]
[Date "2023.10.27"]
[Round "3.47"]
[White "Mamedov, Rauf"]
[Black "Amar, Elham"]
[Result "1/2-1/2"]
[WhiteElo "2640"]
[BlackElo "2568"]
[EventDate "2023.10.25"]
[ECO "A20"]
[PlyCount "107"]
[BlackFideId "1533533"]
[TimeControl "40/100 + 20/50 + 15 + 30s/move"]
[WhiteFideId "13401653"]

1.c4 {[%clk 01:40:53] [%emt 00:00:07]} 1...e5 {[%clk 01:40:12] [%emt 00:00:47]} 
2.g3 {[%clk 01:41:17] [%emt 00:00:07]} 2...Nc6 {[%clk 01:40:02] [%emt 00:00:41]} 
3.Bg2 {[%clk 01:41:42] [%emt 00:00:05]} 3...f5 {[%clk 01:39:49] [%emt 00:00:44]} 
4.Nc3 {[%clk 01:42:07] [%emt 00:00:04]} 4...Nf6 {[%clk 01:39:56] [%emt
00:00:23]} 5.d3 {[%clk 01:42:33] [%emt 00:00:05]} 5...Bb4 {[%clk 01:40:01] [%emt
00:00:25]} 6.Nf3 {[%clk 01:37:54] [%emt 00:05:08]} 6...Bxc3+ {[%clk 01:39:15]
[%emt 00:01:16]} 7.bxc3 {[%clk 01:38:12] [%emt 00:00:12]} 7...O-O {[%clk
01:38:54] [%emt 00:00:50]} 8.O-O {[%clk 01:32:24] [%emt 00:06:19]} 8...d6 
{[%clk 01:37:05] [%emt 00:02:19]} 9.c5 {[%clk 01:21:25] [%emt 00:11:30]} 9...d5 
{[%clk 01:27:22] [%emt 00:10:11]} 10.Qb3 {[%clk 01:08:49] [%emt 00:13:07]} 
10...h6 {[%clk 00:59:49] [%emt 00:28:03]} 11.Rd1 {[%clk 00:57:18] [%emt
00:12:01]} 11...Qe8 {[%clk 00:46:51] [%emt 00:13:28]} 12.Nd2 {[%clk 00:43:18]
[%emt 00:14:29]} 12...Qf7 {[%clk 00:28:49] [%emt 00:18:33]} 13.Nf1 {[%clk
00:35:22] [%emt 00:08:25]} 13...Rb8 {[%clk 00:26:43] [%emt 00:02:37]} 14.f4 
{[%clk 00:30:42] [%emt 00:05:11]} 14...e4 {[%clk 00:19:21] [%emt 00:07:51]} 
15.dxe4 {[%clk 00:22:43] [%emt 00:08:29]} 15...dxe4 {[%clk 00:18:17] [%emt
00:01:34]} 16.Qxf7+ {[%clk 00:22:48] [%emt 00:00:24]} 16...Kxf7 {[%clk 00:18:21]
[%emt 00:00:26]} 17.Ne3 {[%clk 00:20:41] [%emt 00:02:38]} 17...Be6 {[%clk
00:18:09] [%emt 00:00:42]} 18.g4 {[%clk 00:19:01] [%emt 00:02:09]} 18...fxg4 
{[%clk 00:15:14] [%emt 00:03:25]} 19.f5 {[%clk 00:19:29] [%emt 00:00:03]} 
19...Bc8 {[%clk 00:15:24] [%emt 00:00:19]} 20.c4 {[%clk 00:19:23] [%emt
00:00:37]} 20...Ne7 {[%clk 00:12:59] [%emt 00:02:55]} 21.Rf1 {[%clk 00:14:09]
[%emt 00:05:44]} 21...Rd8 {[%clk 00:05:04] [%emt 00:08:25]} 22.Rb1 {[%clk
00:07:56] [%emt 00:06:44]} 22...Bd7 {[%clk 00:04:54] [%emt 00:00:39]} 23.Bb2 
{[%clk 00:06:46] [%emt 00:01:40]} 23...Bc6 {[%clk 00:05:14] [%emt 00:00:10]} 
24.Bc3 {[%clk 00:05:42] [%emt 00:01:34]} 24...h5 {[%clk 00:04:50] [%emt
00:00:54]} 25.Nc2 {[%clk 00:05:03] [%emt 00:01:09]} 25...Ba4 {[%clk 00:01:42]
[%emt 00:03:39]} 26.Nd4 {[%clk 00:04:32] [%emt 00:01:01]} 26...Bd7 {[%clk
00:02:01] [%emt 00:00:10]} 27.Rf4 {[%clk 00:03:12] [%emt 00:01:50]} 27...b6 
{[%clk 00:01:38] [%emt 00:00:54]} 28.Rbf1 {[%clk 00:01:58] [%emt 00:01:43]} 
28...Bc6 {[%clk 00:00:38] [%emt 00:01:31]} 29.Ne6 {[%clk 00:01:59] [%emt
00:00:29]} 29...Rd7 {[%clk 00:00:52] [%emt 00:00:16]} 30.h3 {[%clk 00:01:09]
[%emt 00:01:21]} 30...gxh3 {[%clk 00:00:52] [%emt 00:00:30]} 31.Bxh3 {[%clk
00:01:36] [%emt 00:00:03]} 31...b5 {[%clk 00:00:49] [%emt 00:00:33]} 32.Kh2 
{[%clk 00:01:29] [%emt 00:00:36]} 32...bxc4 {[%clk 00:00:46] [%emt 00:00:33]} 
33.Rg1 {[%clk 00:01:57] [%emt 00:00:02]} 33...Rg8 {[%clk 00:01:08] [%emt
00:00:09]} 34.Rff1 {[%clk 00:01:24] [%emt 00:01:03]} 34...Ned5 {[%clk 00:00:50]
[%emt 00:00:48]} 35.Bd4 {[%clk 00:01:49] [%emt 00:00:04]} 35...c3 {[%clk
00:00:44] [%emt 00:00:36]} 36.e3 {[%clk 00:01:40] [%emt 00:00:39]} 36...c2 
{[%clk 00:00:44] [%emt 00:00:31]} 37.Rf2 {[%clk 00:01:48] [%emt 00:00:20]} 
37...Ba4 {[%clk 00:00:40] [%emt 00:00:35]} 38.a3 {[%clk 00:01:42] [%emt
00:00:37]} 38...Ng4+ {[%clk 00:00:49] [%emt 00:00:20]} 39.Bxg4 {[%clk 00:02:03]
[%emt 00:00:09]} 39...hxg4 {[%clk 00:01:17] [%emt 00:00:01]} 40.Kg3 {[%clk
00:02:04] [%emt 00:00:30]} 40...Nf6 {[%clk 00:00:34] [%emt 00:01:13]} 41.Rc1 
{[%clk 00:45:05] [%emt 00:07:28]} 41...c6 {[%clk 00:47:10] [%emt 00:03:55]} 
42.Rh2 {[%clk 00:37:01] [%emt 00:08:34]} 42...Rd5 {[%clk 00:16:50] [%emt
00:30:50]} 43.Ng5+ {[%clk 00:33:36] [%emt 00:03:55]} 43...Ke7 {[%clk 00:16:15]
[%emt 00:01:04]} 44.Kf4 {[%clk 00:34:02] [%emt 00:00:04]} 44...g3 {[%clk
00:15:21] [%emt 00:01:24]} 45.Bxf6+ {[%clk 00:33:40] [%emt 00:00:53]} 45...gxf6 
{[%clk 00:15:02] [%emt 00:00:49]} 46.Rh7+ {[%clk 00:34:06] [%emt 00:00:03]} 
46...Kd8 {[%clk 00:15:27] [%emt 00:00:06]} 47.Ne6+ {[%clk 00:34:32] [%emt
00:00:04]} 47...Kc8 {[%clk 00:15:36] [%emt 00:00:22]} 48.Rxa7 {[%clk 00:34:58]
[%emt 00:00:03]} 48...Rd1 {[%clk 00:14:39] [%emt 00:01:28]} 49.Ra8+ {[%clk
00:33:47] [%emt 00:01:41]} 49...Kb7 {[%clk 00:14:51] [%emt 00:00:17]} 50.Rxg8 
{[%clk 00:34:13] [%emt 00:00:04]} 50...Rxc1 {[%clk 00:15:12] [%emt 00:00:09]} 
51.Rg7+ {[%clk 00:34:41] [%emt 00:00:01]} 51...Kb8 {[%clk 00:11:02] [%emt
00:04:40]} 52.Rg8+ {[%clk 00:35:07] [%emt 00:00:04]} 52...Kb7 {[%clk 00:11:14]
[%emt 00:00:18]} 53.Rg7+ {[%clk 00:35:34] [%emt 00:00:04]} 53...Kb8 {[%clk
00:11:20] [%emt 00:00:23]} 54.Rg8+ {[%clk 00:34:51] [%emt 00:00:04]} 1/2-1/2

[Event "FIDE Grand Swiss 2023"]
[Site "Villa Marina, Douglas, Isle of Man"]
[Date "2023.10.27"]
[Round "3.48"]
[White "Fier, Alexandr"]
[Black "Yilmaz, Mustafa"]
[Result "0-1"]
[WhiteElo "2574"]
[BlackElo "2640"]
[EventDate "2023.10.25"]
[ECO "E04"]
[PlyCount "100"]
[BlackFideId "6302718"]
[TimeControl "40/100 + 20/50 + 15 + 30s/move"]
[WhiteFideId "2107139"]

1.d4 {[%clk 01:40:57] [%emt 00:00:02]} 1...Nf6 {[%clk 01:40:46] [%emt 00:00:14]} 
2.c4 {[%clk 01:41:23] [%emt 00:00:04]} 2...e6 {[%clk 01:41:12] [%emt 00:00:04]} 
3.Nf3 {[%clk 01:41:49] [%emt 00:00:04]} 3...d5 {[%clk 01:41:38] [%emt 00:00:05]} 
4.g3 {[%clk 01:42:15] [%emt 00:00:03]} 4...dxc4 {[%clk 01:41:37] [%emt
00:00:31]} 5.Bg2 {[%clk 01:42:40] [%emt 00:00:04]} 5...c5 {[%clk 01:41:42] [%emt
00:00:26]} 6.O-O {[%clk 01:43:04] [%emt 00:00:06]} 6...Nc6 {[%clk 01:42:10]
[%emt 00:00:02]} 7.Qa4 {[%clk 01:43:28] [%emt 00:00:06]} 7...Bd7 {[%clk
01:41:51] [%emt 00:00:48]} 8.Qxc4 {[%clk 01:43:53] [%emt 00:00:06]} 8...b5 
{[%clk 01:41:32] [%emt 00:00:49]} 9.Qd3 {[%clk 01:44:19] [%emt 00:00:04]} 
9...c4 {[%clk 01:41:21] [%emt 00:00:41]} 10.Qd1 {[%clk 01:44:44] [%emt
00:00:04]} 10...Rc8 {[%clk 01:38:52] [%emt 00:03:00]} 11.Bf4 {[%clk 01:45:03]
[%emt 00:00:11]} 11...Be7 {[%clk 01:32:47] [%emt 00:06:35]} 12.Nc3 {[%clk
01:45:12] [%emt 00:00:20]} 12...a6 {[%clk 01:25:31] [%emt 00:07:48]} 13.a3 
{[%clk 01:45:37] [%emt 00:00:05]} 13...Na5 {[%clk 01:10:43] [%emt 00:15:17]} 
14.e4 {[%clk 01:42:40] [%emt 00:03:27]} 14...Nb3 {[%clk 01:05:48] [%emt
00:05:25]} 15.d5 {[%clk 01:39:19] [%emt 00:03:51]} 15...Nxa1 {[%clk 00:52:59]
[%emt 00:13:19]} 16.d6 {[%clk 01:39:28] [%emt 00:00:21]} 16...Bf8 {[%clk
00:44:06] [%emt 00:09:23]} 17.Qxa1 {[%clk 01:36:40] [%emt 00:03:19]} 17...Nh5 
{[%clk 00:44:34] [%emt 00:00:01]} 18.Be3 {[%clk 01:29:54] [%emt 00:07:15]} 
18...Bxd6 {[%clk 00:40:59] [%emt 00:04:07]} 19.e5 {[%clk 01:30:20] [%emt
00:00:03]} 19...Bc5 {[%clk 00:28:52] [%emt 00:12:37]} 20.g4 {[%clk 01:29:47]
[%emt 00:01:03]} 20...Bxe3 {[%clk 00:28:22] [%emt 00:01:00]} 21.fxe3 {[%clk
01:29:53] [%emt 00:00:24]} 21...Qb6 {[%clk 00:28:32] [%emt 00:00:20]} 22.gxh5 
{[%clk 01:27:48] [%emt 00:02:35]} 22...Qxe3+ {[%clk 00:29:00] [%emt 00:00:02]} 
23.Kh1 {[%clk 01:28:10] [%emt 00:00:08]} 23...Bc6 {[%clk 00:28:09] [%emt
00:01:22]} 24.Re1 {[%clk 01:12:36] [%emt 00:16:03]} 24...Qf4 {[%clk 00:28:36]
[%emt 00:00:03]} 25.Ne2 {[%clk 01:13:02] [%emt 00:00:05]} 25...Qg4 {[%clk
00:27:47] [%emt 00:01:18]} 26.Ned4 {[%clk 01:13:28] [%emt 00:00:05]} 26...Bd5 
{[%clk 00:21:16] [%emt 00:07:00]} 27.Rg1 {[%clk 01:05:21] [%emt 00:08:37]} 
27...Qxh5 {[%clk 00:20:26] [%emt 00:01:20]} 28.Qe1 {[%clk 01:04:37] [%emt
00:01:15]} 28...O-O {[%clk 00:20:07] [%emt 00:00:48]} 29.Nd2 {[%clk 01:01:55]
[%emt 00:03:12]} 29...Bxg2+ {[%clk 00:12:51] [%emt 00:07:47]} 30.Rxg2 {[%clk
01:02:21] [%emt 00:00:03]} 30...Rfd8 {[%clk 00:12:29] [%emt 00:00:51]} 31.N2f3 
{[%clk 00:59:35] [%emt 00:03:17]} 31...Qh6 {[%clk 00:12:57] [%emt 00:00:02]} 
32.Rg4 {[%clk 00:58:52] [%emt 00:01:13]} 32...Rd5 {[%clk 00:12:13] [%emt
00:01:14]} 33.Kg2 {[%clk 00:58:44] [%emt 00:00:38]} 33...Re8 {[%clk 00:09:16]
[%emt 00:03:28]} 34.h4 {[%clk 00:54:21] [%emt 00:04:53]} 34...f6 {[%clk
00:09:09] [%emt 00:00:37]} 35.Kg3 {[%clk 00:49:01] [%emt 00:05:49]} 35...fxe5 
{[%clk 00:08:33] [%emt 00:01:06]} 36.Nxe5 {[%clk 00:49:28] [%emt 00:00:03]} 
36...Rf8 {[%clk 00:06:41] [%emt 00:02:22]} 37.Nec6 {[%clk 00:47:14] [%emt
00:02:45]} 37...Qf6 {[%clk 00:05:13] [%emt 00:01:57]} 38.Qxe6+ {[%clk 00:45:22]
[%emt 00:02:22]} 38...Qxe6 {[%clk 00:05:41] [%emt 00:00:02]} 39.Nxe6 {[%clk
00:45:47] [%emt 00:00:05]} 39...Rd3+ {[%clk 00:06:04] [%emt 00:00:07]} 40.Kg2 
{[%clk 00:46:15] [%emt 00:00:02]} 40...Rd2+ {[%clk 00:06:16] [%emt 00:00:18]} 
41.Kg3 {[%clk 00:46:42] [%emt 00:00:03]} 41...Rf7 {[%clk 00:47:15] [%emt
00:09:30]} 42.Rd4 {[%clk 01:33:43] [%emt 00:03:29]} 42...Rff2 {[%clk 00:46:26]
[%emt 00:01:19]} 43.Re4 {[%clk 01:31:34] [%emt 00:02:40]} 43...Rfe2 {[%clk
00:42:12] [%emt 00:04:44]} 44.Ne7+ {[%clk 01:31:54] [%emt 00:00:09]} 44...Kf7 
{[%clk 00:40:53] [%emt 00:01:49]} 45.Ng5+ {[%clk 01:32:20] [%emt 00:00:04]} 
45...Ke8 {[%clk 00:41:15] [%emt 00:00:08]} 46.Rxe2 {[%clk 01:30:47] [%emt
00:02:04]} 46...Rxe2 {[%clk 00:41:43] [%emt 00:00:02]} 47.Nd5 {[%clk 01:31:13]
[%emt 00:00:04]} 47...Rxb2 {[%clk 00:40:49] [%emt 00:01:24]} 48.Nc7+ {[%clk
01:31:41] [%emt 00:00:02]} 48...Kd8 {[%clk 00:37:47] [%emt 00:03:31]} 49.Nxa6 
{[%clk 01:32:06] [%emt 00:00:06]} 49...c3 {[%clk 00:37:30] [%emt 00:00:47]} 
50.Ne6+ {[%clk 01:32:31] [%emt 00:00:05]} 50...Kc8 {[%clk 00:37:08] [%emt
00:00:51]} 0-1

[Event "FIDE Grand Swiss 2023"]
[Site "Villa Marina, Douglas, Isle of Man"]
[Date "2023.10.27"]
[Round "3.49"]
[White "Warmerdam, Max"]
[Black "Samunenkov, Ihor"]
[Result "1/2-1/2"]
[WhiteElo "2636"]
[BlackElo "2531"]
[EventDate "2023.10.25"]
[ECO "D45"]
[PlyCount "110"]
[BlackFideId "14187086"]
[TimeControl "40/100 + 20/50 + 15 + 30s/move"]
[WhiteFideId "1048104"]

1.c4 {[%clk 01:40:56] [%emt 00:00:03]} 1...Nf6 {[%clk 01:40:46] [%emt 00:00:15]} 
2.Nf3 {[%clk 01:39:56] [%emt 00:01:31]} 2...e6 {[%clk 01:40:54] [%emt 00:00:22]} 
3.Nc3 {[%clk 01:40:12] [%emt 00:00:14]} 3...d5 {[%clk 01:41:07] [%emt 00:00:17]} 
4.d4 {[%clk 01:40:36] [%emt 00:00:06]} 4...c6 {[%clk 01:41:23] [%emt 00:00:13]} 
5.e3 {[%clk 01:39:21] [%emt 00:01:44]} 5...Nbd7 {[%clk 01:41:28] [%emt
00:00:26]} 6.h3 {[%clk 01:39:38] [%emt 00:00:13]} 6...a6 {[%clk 01:30:29] [%emt
00:11:30]} 7.a4 {[%clk 01:34:00] [%emt 00:06:08]} 7...Bd6 {[%clk 01:24:07] [%emt
00:06:51]} 8.Bd3 {[%clk 01:30:41] [%emt 00:03:48]} 8...O-O {[%clk 01:23:38]
[%emt 00:00:59]} 9.O-O {[%clk 01:30:51] [%emt 00:00:20]} 9...dxc4 {[%clk
01:22:35] [%emt 00:01:34]} 10.Bxc4 {[%clk 01:31:16] [%emt 00:00:05]} 10...c5 
{[%clk 01:22:45] [%emt 00:00:20]} 11.dxc5 {[%clk 01:27:35] [%emt 00:04:11]} 
11...Bxc5 {[%clk 01:15:56] [%emt 00:07:19]} 12.Qe2 {[%clk 01:26:12] [%emt
00:01:52]} 12...Qc7 {[%clk 01:07:07] [%emt 00:09:20]} 13.b3 {[%clk 01:21:03]
[%emt 00:05:40]} 13...b6 {[%clk 01:02:23] [%emt 00:05:12]} 14.Bb2 {[%clk
01:20:07] [%emt 00:01:27]} 14...Bb7 {[%clk 01:02:21] [%emt 00:00:32]} 15.Rac1 
{[%clk 01:20:10] [%emt 00:00:27]} 15...Rfd8 {[%clk 00:52:02] [%emt 00:10:49]} 
16.Rfd1 {[%clk 01:12:47] [%emt 00:07:53]} 16...Nf8 {[%clk 00:49:59] [%emt
00:02:33]} 17.Rxd8 {[%clk 01:00:08] [%emt 00:13:09]} 17...Qxd8 {[%clk 00:50:13]
[%emt 00:00:17]} 18.Bd3 {[%clk 00:58:59] [%emt 00:01:39]} 18...Ng6 {[%clk
00:47:39] [%emt 00:03:03]} 19.Ng5 {[%clk 00:56:27] [%emt 00:03:01]} 19...Bd6 
{[%clk 00:35:13] [%emt 00:12:57]} 20.Nce4 {[%clk 00:51:45] [%emt 00:05:12]} 
20...Nxe4 {[%clk 00:32:09] [%emt 00:03:34]} 21.Bxe4 {[%clk 00:51:43] [%emt
00:00:32]} 21...Bxe4 {[%clk 00:31:55] [%emt 00:00:44]} 22.Nxe4 {[%clk 00:36:43]
[%emt 00:15:30]} 22...Be5 {[%clk 00:31:16] [%emt 00:01:09]} 23.Bxe5 {[%clk
00:36:40] [%emt 00:00:33]} 23...Nxe5 {[%clk 00:31:39] [%emt 00:00:07]} 24.f4 
{[%clk 00:34:12] [%emt 00:02:57]} 24...Ng6 {[%clk 00:25:37] [%emt 00:06:33]} 
25.Rc6 {[%clk 00:32:05] [%emt 00:02:37]} 25...Ne7 {[%clk 00:17:58] [%emt
00:08:09]} 26.Rd6 {[%clk 00:32:25] [%emt 00:00:10]} 26...Qc8 {[%clk 00:17:05]
[%emt 00:01:23]} 27.Rxb6 {[%clk 00:18:42] [%emt 00:14:13]} 27...Nd5 {[%clk
00:16:04] [%emt 00:01:31]} 28.Rd6 {[%clk 00:18:11] [%emt 00:01:00]} 28...Qc1+ 
{[%clk 00:14:15] [%emt 00:02:19]} 29.Kf2 {[%clk 00:17:38] [%emt 00:01:03]} 
29...h6 {[%clk 00:10:13] [%emt 00:04:32]} 30.Qd2 {[%clk 00:15:21] [%emt
00:02:47]} 30...Qc7 {[%clk 00:09:44] [%emt 00:00:59]} 31.f5 {[%clk 00:07:23]
[%emt 00:08:29]} 31...Rb8 {[%clk 00:09:30] [%emt 00:00:44]} 32.Qd3 {[%clk
00:06:57] [%emt 00:00:56]} 32...Nb4 {[%clk 00:05:00] [%emt 00:04:59]} 33.Qc4 
{[%clk 00:06:26] [%emt 00:01:01]} 33...Qxc4 {[%clk 00:04:43] [%emt 00:00:48]} 
34.bxc4 {[%clk 00:06:52] [%emt 00:00:04]} 34...exf5 {[%clk 00:05:06] [%emt
00:00:08]} 35.Nd2 {[%clk 00:06:32] [%emt 00:00:50]} 35...Kf8 {[%clk 00:03:24]
[%emt 00:02:11]} 36.Rd7 {[%clk 00:05:12] [%emt 00:01:50]} 36...Ke8 {[%clk
00:01:21] [%emt 00:02:34]} 37.Ra7 {[%clk 00:04:38] [%emt 00:01:03]} 37...Nd3+ 
{[%clk 00:01:20] [%emt 00:00:31]} 38.Kg3 {[%clk 00:01:58] [%emt 00:03:09]} 
38...Nc5 {[%clk 00:01:28] [%emt 00:00:23]} 39.Nf3 {[%clk 00:02:12] [%emt
00:00:16]} 39...Nxa4 {[%clk 00:00:47] [%emt 00:01:11]} 40.Ne5 {[%clk 00:01:07]
[%emt 00:01:35]} 40...Rb6 {[%clk 00:00:33] [%emt 00:00:45]} 41.Kf4 {[%clk
00:35:13] [%emt 00:16:23]} 41...Nc5 {[%clk 00:35:04] [%emt 00:15:59]} 42.Nxf7 
{[%clk 00:28:19] [%emt 00:07:24]} 42...Rf6 {[%clk 00:20:12] [%emt 00:15:21]} 
43.Nh8 {[%clk 00:22:49] [%emt 00:06:01]} 43...Nd3+ {[%clk 00:18:31] [%emt
00:02:10]} 44.Kg3 {[%clk 00:23:06] [%emt 00:00:13]} 44...g5 {[%clk 00:18:12]
[%emt 00:00:49]} 45.h4 {[%clk 00:23:01] [%emt 00:00:36]} 45...Ne5 {[%clk
00:15:53] [%emt 00:02:48]} 46.c5 {[%clk 00:17:31] [%emt 00:06:01]} 46...Kf8 
{[%clk 00:12:09] [%emt 00:04:14]} 47.h5 {[%clk 00:16:38] [%emt 00:01:23]} 
47...Rc6 {[%clk 00:11:55] [%emt 00:00:43]} 48.Ng6+ {[%clk 00:15:31] [%emt
00:01:37]} 48...Nxg6 {[%clk 00:12:19] [%emt 00:00:06]} 49.hxg6 {[%clk 00:15:59]
[%emt 00:00:03]} 49...Rxg6 {[%clk 00:09:24] [%emt 00:03:25]} 50.Kf3 {[%clk
00:15:45] [%emt 00:00:44]} 50...Rc6 {[%clk 00:02:13] [%emt 00:07:41]} 51.g4 
{[%clk 00:15:16] [%emt 00:00:59]} 51...fxg4+ {[%clk 00:01:27] [%emt 00:01:16]} 
52.Kxg4 {[%clk 00:15:42] [%emt 00:00:03]} 52...Rxc5 {[%clk 00:01:46] [%emt
00:00:12]} 53.Rxa6 {[%clk 00:16:08] [%emt 00:00:04]} 53...Rc4+ {[%clk 00:01:32]
[%emt 00:00:44]} 54.Kf5 {[%clk 00:16:08] [%emt 00:00:30]} 54...Rh4 {[%clk
00:01:45] [%emt 00:00:17]} 55.e4 {[%clk 00:15:42] [%emt 00:00:55]} 55...Rf4+ 
{[%clk 00:01:06] [%emt 00:01:10]} 1/2-1/2

[Event "FIDE Grand Swiss 2023"]
[Site "Villa Marina, Douglas, Isle of Man"]
[Date "2023.10.27"]
[Round "3.50"]
[White "Gledura, Benjamin"]
[Black "Rodrigue-Lemieux, Shawn"]
[Result "0-1"]
[WhiteElo "2633"]
[BlackElo "2488"]
[EventDate "2023.10.25"]
[ECO "E10"]
[PlyCount "68"]
[BlackFideId "2620049"]
[TimeControl "40/100 + 20/50 + 15 + 30s/move"]
[WhiteFideId "712779"]

1.d4 {[%clk 01:40:56] [%emt 00:00:03]} 1...Nf6 {[%clk 01:40:53] [%emt 00:00:08]} 
2.c4 {[%clk 01:41:15] [%emt 00:00:11]} 2...e6 {[%clk 01:41:16] [%emt 00:00:07]} 
3.Nf3 {[%clk 01:41:21] [%emt 00:00:24]} 3...d5 {[%clk 01:41:37] [%emt 00:00:08]} 
4.g3 {[%clk 01:41:28] [%emt 00:00:23]} 4...Be7 {[%clk 01:42:00] [%emt 00:00:07]} 
5.Bg2 {[%clk 01:41:37] [%emt 00:00:21]} 5...O-O {[%clk 01:42:21] [%emt
00:00:09]} 6.Nc3 {[%clk 01:41:53] [%emt 00:00:14]} 6...dxc4 {[%clk 01:42:20]
[%emt 00:00:31]} 7.Ne5 {[%clk 01:42:06] [%emt 00:00:18]} 7...Nc6 {[%clk
01:42:26] [%emt 00:00:24]} 8.Bxc6 {[%clk 01:42:04] [%emt 00:00:31]} 8...bxc6 
{[%clk 01:42:51] [%emt 00:00:05]} 9.Nxc6 {[%clk 01:42:27] [%emt 00:00:07]} 
9...Qe8 {[%clk 01:43:17] [%emt 00:00:04]} 10.Nxe7+ {[%clk 01:42:48] [%emt
00:00:09]} 10...Qxe7 {[%clk 01:43:43] [%emt 00:00:04]} 11.Qa4 {[%clk 01:43:03]
[%emt 00:00:15]} 11...c5 {[%clk 01:43:38] [%emt 00:00:34]} 12.dxc5 {[%clk
01:43:19] [%emt 00:00:14]} 12...Qxc5 {[%clk 01:44:03] [%emt 00:00:06]} 13.Be3 
{[%clk 01:43:27] [%emt 00:00:22]} 13...Qc7 {[%clk 01:43:07] [%emt 00:01:26]} 
14.f3 {[%clk 01:43:23] [%emt 00:00:34]} 14...a5 {[%clk 01:37:31] [%emt
00:06:06]} 15.O-O-O {[%clk 01:36:59] [%emt 00:06:54]} 15...Rb8 {[%clk 01:26:17]
[%emt 00:11:44]} 16.Rd2 {[%clk 01:35:17] [%emt 00:02:11]} 16...Rb4 {[%clk
01:17:19] [%emt 00:09:28]} 17.Qc2 {[%clk 01:31:24] [%emt 00:04:23]} 17...Re8 
{[%clk 00:56:09] [%emt 00:21:41]} 18.Rhd1 {[%clk 01:28:41] [%emt 00:03:13]} 
18...h6 {[%clk 00:51:03] [%emt 00:05:37]} 19.Kb1 {[%clk 01:20:19] [%emt
00:08:52]} 19...Bd7 {[%clk 00:45:23] [%emt 00:06:09]} 20.Ka1 {[%clk 01:17:22]
[%emt 00:03:28]} 20...Nd5 {[%clk 00:36:23] [%emt 00:09:29]} 21.Bd4 {[%clk
01:15:38] [%emt 00:02:14]} 21...Nxc3 {[%clk 00:33:16] [%emt 00:03:37]} 22.Qxc3 
{[%clk 01:14:11] [%emt 00:01:57]} 22...e5 {[%clk 00:32:44] [%emt 00:01:03]} 
23.Be3 {[%clk 01:12:38] [%emt 00:02:02]} 23...Ba4 {[%clk 00:32:21] [%emt
00:00:53]} 24.Rc1 {[%clk 01:12:27] [%emt 00:00:42]} 24...Qc6 {[%clk 00:28:30]
[%emt 00:04:20]} 25.f4 {[%clk 01:03:28] [%emt 00:09:29]} 25...Qe4 {[%clk
00:21:22] [%emt 00:07:38]} 26.Bc5 {[%clk 00:47:57] [%emt 00:16:01]} 26...Rb7 
{[%clk 00:17:25] [%emt 00:04:27]} 27.fxe5 {[%clk 00:45:45] [%emt 00:02:43]} 
27...Rxe5 {[%clk 00:14:19] [%emt 00:03:35]} 28.Bd4 {[%clk 00:44:45] [%emt
00:01:31]} 28...Rd5 {[%clk 00:12:41] [%emt 00:02:08]} 29.Qxc4 {[%clk 00:41:35]
[%emt 00:03:40]} 29...Rb4 {[%clk 00:08:23] [%emt 00:04:48]} 30.Qc8+ {[%clk
00:40:46] [%emt 00:01:19]} 30...Kh7 {[%clk 00:08:52] [%emt 00:00:01]} 31.e3 
{[%clk 00:40:26] [%emt 00:00:50]} 31...f6 {[%clk 00:06:13] [%emt 00:03:09]} 
32.Qc7 {[%clk 00:37:45] [%emt 00:03:12]} 32...Bd7 {[%clk 00:05:30] [%emt
00:01:11]} 33.Qf4 {[%clk 00:35:39] [%emt 00:02:36]} 33...Qe6 {[%clk 00:05:21]
[%emt 00:00:39]} 34.Rc7 {[%clk 00:31:26] [%emt 00:04:44]} 34...Rf5 {[%clk
00:04:56] [%emt 00:00:55]} 0-1